bitfinex/quotes_SOLUSD_20250601
["timestamp","ask_amount","ask_price","bid_price","bid_amount"]
[1748758736506,31.94605661,155.04,155.0,9.3709229]
[1748758738503,31.94605661,155.04,154.99,9.3709229]
[1748758739382,6.45078054,155.02,154.99,9.3709229]
[1748758745628,22.57513371,155.04,155.0,9.3709229]
[1748758746030,6.4499484,155.04,155.0,9.3709229]
[1748758746211,16.48970436,155.05,155.02,9.3709229]
[1748758746405,16.48970436,155.05,155.03,9.3709229]
[1748758746815,16.48970436,155.05,154.98,1.6119]
[1748758747004,16.48970436,155.05,155.02,9.3709229]
[1748758748334,17.0243336,155.08,155.03,9.3709229]
[1748758748519,7.6534107,155.08,155.04,9.3709229]
[1748758749325,17.0243336,155.08,155.03,9.3709229]
[1748758749822,6.44870058,155.07,155.03,9.3709229]
[1748758752831,35.3709229,155.04,154.95,0.98539354]
[1748758753021,9.3709229,155.02,154.97,9.3709229]
[1748758754137,6.45119669,155.01,154.97,9.3709229]
[1748758757228,22.57674565,155.03,154.97,9.3709229]
[1748758757428,9.3709229,155.02,154.98,9.3709229]
[1748758758823,6.45119669,155.01,154.98,9.3709229]
[1748758765558,6.45119669,155.01,154.95,0.98539354]
[1748758765733,6.45119669,155.01,154.98,9.3709229]
[1748758769043,16.12638121,155.03,154.95,0.98539354]
[1748758769044,6.45036444,155.03,155.0,9.3709229]
[1748758769265,6.45036444,155.03,154.96,37.4836916]
[1748758769266,6.45036444,155.03,154.99,9.3709229]
[1748758780695,6.45036444,155.03,155.02,9.3709229]
[1748758781176,6.4495324,155.05,155.02,9.3709229]
[1748758786006,6.4495324,155.05,155.01,9.3709229]
[1748758788785,15.8204553,155.05,155.01,9.3709229]
[1748758790106,15.8204553,155.05,155.0,9.3709229]
[1748758790107,31.94428632,155.05,155.0,9.3709229]
[1748758790289,9.3709229,155.03,154.99,9.3709229]
[1748758790494,9.3709229,155.03,154.98,9.3709229]
[1748758791590,9.3709229,155.01,154.94,116.53733348]
[1748758791786,9.3709229,155.01,154.97,9.3709229]
[1748758792204,6.4516129,155.0,154.97,9.3709229]
[1748758792507,15.8225358,155.0,154.94,26.93733348]
[1748758792713,15.8225358,155.0,154.95,9.3709229]
[1748758793011,9.3709229,154.99,154.94,26.93733348]
[1748758793196,9.3709229,154.99,154.94,36.30825638]
[1748758793529,61.70064515,155.0,154.94,36.30825638]
[1748758793530,9.3709229,154.98,154.94,10.30825638]
[1748758793685,9.3709229,154.97,154.94,0.93733348]
[1748758794300,6.45286184,154.97,154.94,0.93733348]
[1748758798692,9.3709229,154.96,154.94,0.93733348]
[1748758798890,15.82378474,154.97,154.94,0.93733348]
[1748758803350,9.51308447,154.96,154.94,0.93733348]
[1748758803564,26.0,154.92,154.87,0.874022]
[1748758803848,9.3709229,154.9,154.87,0.874022]
[1748758804556,48.81308447,154.91,154.87,0.874022]
[1748758805355,6.45661157,154.88,154.87,0.874022]
[1748758809758,6.45619471,154.89,154.87,0.874022]
[1748758811262,14.81248579,154.9,154.87,0.874022]
[1748758811263,6.45592747,154.9,154.87,0.874022]
[1748758812634,21.12625169,154.9,154.87,0.874022]
[1748758814245,14.67032422,154.89,154.87,0.874022]
[1748758814661,21.12686939,154.89,154.87,0.874022]
[1748758815039,14.67032422,154.88,154.87,0.874022]
[1748758815241,21.12686939,154.89,154.87,0.874022]
[1748758818066,14.67032422,154.88,154.87,0.874022]
[1748758820237,21.12693579,154.88,154.87,0.874022]
[1748758820855,21.12664754,154.89,154.87,0.874022]
[1748758821971,6.45632332,154.89,154.87,0.874022]
[1748758822260,21.12664754,154.89,154.87,0.874022]
[1748758827170,10.02,154.9,154.87,15.54434622]
[1748758827372,16.47579339,154.9,154.87,15.54434622]
[1748758827576,16.47579339,154.9,154.87,0.874022]
[1748758828661,25.86405694,154.9,154.87,0.874022]
[1748758829254,9.38826355,154.89,154.87,0.874022]
[1748758830067,15.84448784,154.89,154.87,0.874022]
[1748758830649,25.86420922,154.9,154.87,0.874022]
[1748758831464,15.84420922,154.9,154.87,0.874022]
[1748758834780,9.38826355,154.89,154.87,0.874022]
[1748758835779,15.84447517,154.89,154.87,0.874022]
[1748758837060,9.38826355,154.88,154.87,0.874022]
[1748758837285,15.98703669,154.88,154.87,0.874022]
[1748758837473,16.12919826,154.88,154.87,0.874022]
[1748758837787,6.74093471,154.88,154.87,0.874022]
[1748758837984,16.12919826,154.88,154.87,0.874022]
[1748758840189,19.36488647,154.88,154.87,0.874022]
[1748758841187,29.44488647,154.88,154.87,0.874022]
[1748758842692,85.64758953,154.88,154.87,0.874022]
[1748758846087,26.0,154.85,154.75,6.46201684]
[1748758846398,9.38826355,154.81,154.75,32.46201684]
[1748758846570,9.38826355,154.81,154.77,9.38826355]
[1748758847168,15.84816173,154.81,154.77,9.38826355]
[1748758848589,15.84816173,154.81,154.78,9.38826355]
[1748758848590,6.45989818,154.81,154.78,9.38826355]
[1748758849787,6.4591138,154.82,154.78,9.38826355]
[1748758851597,10.08,154.83,154.81,9.38826355]
[1748758851777,10.08,154.83,154.82,9.38826355]
[1748758852086,6.45812835,154.85,154.81,9.38826355]
[1748758854198,15.8463919,154.85,154.78,18.64964886]
[1748758854373,15.8463919,154.85,154.8,9.38826355]
[1748758854777,21.1381809,154.85,154.8,14.68005255]
[1748758854993,21.13874918,154.83,154.79,14.68005255]
[1748758855306,21.13874918,154.83,154.78,14.68005255]
[1748758859982,14.68005255,154.82,154.75,122.061914]
[1748758860182,14.68005255,154.82,154.78,14.68005255]
[1748758860391,60.47874918,154.83,154.78,14.68005255]
[1748758861103,60.47874918,154.83,154.76,6.46132136]
[1748758861298,60.47874918,154.83,154.78,14.68005255]
[1748758861504,14.68005255,154.82,154.76,6.46132136]
[1748758861685,14.68005255,154.82,154.77,14.68005255]
[1748758862200,6.45953103,154.81,154.77,14.68005255]
[1748758866509,6.4591138,154.82,154.77,14.68005255]
[1748758866710,14.68005255,154.81,154.77,14.68005255]
[1748758868121,6.45994832,154.8,154.77,14.68005255]
[1748758868495,6.45994832,154.8,154.75,6.46200607]
[1748758868701,6.45994832,154.8,154.77,14.68005255]
[1748758869217,6.45994832,154.8,154.74,89.6]
[1748758869400,14.68005255,154.79,154.74,104.28005255]
[1748758869598,14.68005255,154.78,154.73,14.68005255]
[1748758870213,39.38,154.79,154.75,14.68005255]
[1748758871116,6.46094669,154.78,154.75,14.68005255]
[1748758871294,21.14099924,154.78,154.74,14.68005255]
[1748758873224,6.46094669,154.78,154.74,14.68005255]
[1748758874298,6.46094669,154.78,154.75,14.68005255]
[1748758874701,6.46094669,154.78,154.75,9.40140755]
[1748758879310,6.46094669,154.78,154.76,9.40140755]
[1748758881026,6.46094669,154.78,154.75,9.40140755]
[1748758881197,6.00594669,154.78,154.75,9.40140755]
[1748758881819,45.84053855,154.79,154.76,9.40140755]
[1748758882614,6.4600886,154.8,154.76,9.40140755]
[1748758882927,39.36,154.81,154.78,9.40140755]
[1748758883128,19.52140755,154.82,154.79,9.40140755]
[1748758883129,10.12,154.82,154.79,9.40140755]
[1748758883321,49.46,154.82,154.79,9.40140755]
[1748758883633,10.12,154.82,154.79,9.40140755]
[1748758883803,16.57917197,154.82,154.79,9.40140755]
[1748758884739,16.57917197,154.82,154.79,14.6827356]
[1748758885412,10.12,154.82,154.79,14.6827356]
[1748758886038,10.12,154.82,154.8,14.6827356]
[1748758889017,45.81844021,154.84,154.8,14.6827356]
[1748758889415,39.36,154.84,154.8,14.6827356]
[1748758889632,6.45801992,154.85,154.8,6.45988494]
[1748758889824,45.85801992,154.85,154.81,14.6827356]
[1748758890229,45.83801992,154.85,154.81,14.6827356]
[1748758890627,39.38,154.85,154.81,14.6827356]
[1748758891453,6.45827951,154.84,154.78,6.46066965]
[1748758891645,6.45827951,154.84,154.8,14.6827356]
[1748758892245,45.83827951,154.84,154.8,14.6827356]
[1748758895041,60.52101511,154.84,154.8,14.6827356]
[1748758896958,60.52101511,154.84,154.78,6.46078304]
[1748758897159,60.52101511,154.84,154.8,14.6827356]
[1748758897969,45.83827951,154.84,154.8,14.6827356]
[1748758899667,60.52101511,154.84,154.77,108.24964886]
[1748758899968,14.6827356,154.81,154.77,104.2827356]
[1748758900161,54.0227356,154.81,154.77,14.6827356]
[1748758900764,54.0227356,154.81,154.75,115.6]
[1748758900948,54.0227356,154.81,154.77,14.6827356]
[1748758901555,14.6827356,154.8,154.76,14.6827356]
[1748758901761,6.46036565,154.79,154.75,130.2827356]
[1748758903073,45.82114953,154.78,154.75,130.2827356]
[1748758904289,45.82114953,154.78,154.75,40.6827356]
[1748758906186,45.82114953,154.78,154.75,14.6827356]
[1748758906488,45.82114953,154.78,154.74,14.6827356]
[1748758906655,45.82114953,154.78,154.74,9.4021425]
[1748758907982,45.82114953,154.78,154.74,8.9021425]
[1748758908287,9.4021425,154.76,154.72,2.53848853]
[1748758908470,39.34,154.75,154.72,2.53848853]
[1748758908678,39.34,154.75,154.72,11.94063103]
[1748758910379,45.80242463,154.75,154.72,11.94063103]
[1748758910795,45.80242463,154.75,154.72,2.53848853]
[1748758911093,14.69574205,154.73,154.72,2.53848853]
[1748758911269,14.98006519,154.73,154.72,2.53848853]
[1748758912355,21.44293599,154.73,154.72,2.53848853]
[1748758912979,47.44293599,154.73,154.72,2.53848853]
[1748758913184,51.3968428,154.73,154.72,0.87188853]
[1748758913490,54.7883269,154.73,154.72,0.87188853]
[1748758913685,25.3968428,154.73,154.72,0.87188853]
[1748758913892,54.7883269,154.73,154.72,0.87188853]
[1748758914062,40.09258485,154.73,154.72,0.87188853]
[1748758914384,25.3968428,154.73,154.72,0.87188853]
[1748758914585,40.09258485,154.73,154.72,0.87188853]
[1748758914790,32.74719394,154.73,154.72,0.87188853]
[1748758915084,87.14293599,154.73,154.72,0.87188853]
[1748758915260,87.16293599,154.73,154.72,0.87188853]
[1748758916211,72.96719394,154.73,154.72,0.87188853]
[1748758916373,87.66293599,154.73,154.72,0.87188853]
[1748758917120,72.96719394,154.73,154.72,0.87188853]
[1748758917269,87.66293599,154.73,154.72,0.87188853]
[1748758920583,6.9628708,154.73,154.72,0.87188853]
[1748758920785,0.5,154.73,154.72,0.87188853]
[1748758920998,0.5,154.73,154.72,15.56763058]
[1748758921190,56.62211116,154.75,154.72,15.56763058]
[1748758921714,52.6705832,154.77,154.74,14.69574205]
[1748758921916,6.38933118,154.77,154.76,14.69574205]
[1748758922095,6.45953103,154.81,154.76,14.69574205]
[1748758922295,6.45953103,154.81,154.77,14.69574205]
[1748758922800,46.29953103,154.81,154.77,14.69574205]
[1748758923514,60.99527308,154.81,154.77,14.69574205]
[1748758923813,21.15527308,154.81,154.77,14.69574205]
[1748758924015,60.99527308,154.81,154.77,14.69574205]
[1748758924407,60.99527308,154.81,154.76,14.69574205]
[1748758924617,60.99527308,154.81,154.73,18.64964886]
[1748758924917,14.69574205,154.79,154.75,14.69574205]
[1748758925116,14.69574205,154.8,154.75,14.69574205]
[1748758925426,14.69574205,154.8,154.72,33.33482903]
[1748758925596,14.69574205,154.8,154.75,14.69574205]
[1748758926000,62.44835862,154.81,154.75,14.69574205]
[1748758926206,62.44835862,154.81,154.76,14.69574205]
[1748758926407,14.69574205,154.8,154.76,14.69574205]
[1748758926804,14.69574205,154.8,154.75,14.69574205]
[1748758928302,6.46036565,154.79,154.76,14.69574205]
[1748758929115,21.15582426,154.8,154.76,14.69574205]
[1748758930513,6.46008221,154.8,154.77,14.69574205]
[1748758931024,6.46008221,154.8,154.76,14.69574205]
[1748758931201,21.15582426,154.8,154.76,14.69574205]
[1748758934636,18.64964886,154.76,154.72,0.87188853]
[1748758934800,40.69574205,154.77,154.72,0.87188853]
[1748758934801,50.28216157,154.75,154.72,0.87188853]
[1748758935008,14.69574205,154.73,154.72,0.87188853]
[1748758935206,50.28216157,154.75,154.72,0.87188853]
[1748758935207,50.14,154.75,154.72,0.87188853]
[1748758935421,14.69574205,154.74,154.72,0.87188853]
[1748758937140,6.46245314,154.74,154.72,0.87188853]
[1748758938943,21.15819519,154.74,154.72,0.87188853]
[1748758940042,55.91443953,154.76,154.72,0.87188853]
[1748758940043,6.46203554,154.75,154.72,0.87188853]
[1748758940244,14.69574205,154.74,154.72,0.87188853]
[1748758941743,6.4628708,154.73,154.72,0.87188853]
[1748758942635,6.46203554,154.75,154.72,0.87188853]
[1748758943233,21.15777759,154.75,154.72,0.87188853]
[1748758943414,6.46203554,154.75,154.72,0.87188853]
[1748758944517,6.46203554,154.75,154.72,15.56763058]
[1748758944719,41.20891856,154.77,154.72,15.56763058]
[1748758944720,6.46171959,154.76,154.73,14.69574205]
[1748758945537,21.15746164,154.76,154.72,15.56763058]
[1748758945725,6.46171959,154.76,154.72,15.56763058]
[1748758947454,25.05574205,154.77,154.73,14.69574205]
[1748758947455,16.82134329,154.77,154.73,14.69574205]
[1748758947627,10.36,154.77,154.74,14.69574205]
[1748758947942,6.46092205,154.78,154.74,14.69574205]
[1748758948930,6.46092205,154.78,154.75,14.69574205]
[1748758950551,21.1566641,154.78,154.74,14.69574205]
[1748758953778,14.69574205,154.79,154.75,14.69574205]
[1748758953981,14.69574205,154.78,154.74,14.69574205]
[1748758955175,6.46105413,154.78,154.75,14.69574205]
[1748758956750,6.45994832,154.8,154.77,14.69574205]
[1748758958373,6.45994832,154.8,154.78,14.69574205]
[1748758958686,6.45994832,154.8,154.77,14.69574205]
[1748758959749,6.45994832,154.8,154.78,14.69574205]
[1748758962259,6.45927418,154.82,154.79,14.69574205]
[1748758962461,6.45927418,154.82,154.8,14.69574205]
[1748758963069,6.45927418,154.82,154.79,14.69574205]
[1748758965759,14.69574205,154.81,154.77,14.69574205]
[1748758966566,6.45994832,154.8,154.77,104.29574205]
[1748758968692,6.45869663,154.83,154.77,104.29574205]
[1748758968897,21.15443868,154.83,154.78,14.69574205]
[1748758970585,14.69574205,154.82,154.77,104.29574205]
[1748758971592,6.45953103,154.81,154.77,104.29574205]
[1748758972685,6.45953103,154.81,154.78,14.69574205]
[1748758973694,6.4591138,154.82,154.78,14.69574205]
[1748758975399,21.15485585,154.82,154.77,104.29574205]
[1748758981081,21.15485585,154.82,154.78,14.69574205]
[1748758981904,6.4591138,154.82,154.78,14.69574205]
[1748758982516,6.4591138,154.82,154.79,14.69574205]
[1748758984214,6.4591138,154.82,154.78,14.69574205]
[1748758984590,6.4591138,154.82,154.79,14.69574205]
[1748758985088,21.15485585,154.82,154.77,104.29574205]
[1748758985484,14.69574205,154.81,154.77,89.6]
[1748758985686,22.60689832,154.82,154.77,89.6]
[1748758985687,14.69574205,154.8,154.77,89.6]
[1748758986097,39.54,154.8,154.77,89.6]
[1748758986308,60.69569037,154.8,154.77,89.6]
[1748758989432,14.69574205,154.79,154.77,89.6]
[1748758989632,14.69574205,154.78,154.77,89.6]
[1748758989856,14.69574205,154.78,154.73,89.6]
[1748758990013,39.54,154.77,154.73,104.29574205]
[1748758990213,54.23574205,154.77,154.73,104.29574205]
[1748758990928,6.46161798,154.76,154.73,104.29574205]
[1748758993618,39.54,154.77,154.75,14.69574205]
[1748758994243,39.54,154.77,154.74,14.69574205]
[1748758994629,46.00120441,154.77,154.74,14.69574205]
[1748758997053,46.00120441,154.77,154.73,104.29574205]
[1748758999831,46.00120441,154.77,154.74,14.69574205]
[1748759000150,46.00120441,154.77,154.75,14.69574205]
[1748759000541,46.00120441,154.77,154.74,14.69574205]
[1748759003262,46.00120441,154.77,154.75,14.69574205]
[1748759003857,39.54,154.77,154.75,14.69574205]
[1748759004743,6.4609414,154.78,154.75,14.69574205]
[1748759004951,45.9209414,154.78,154.75,14.69574205]
[1748759005763,45.9209414,154.78,154.74,14.69574205]
[1748759006338,60.61668345,154.78,154.73,104.29574205]
[1748759007460,45.9209414,154.78,154.73,104.29574205]
[1748759008163,60.61668345,154.78,154.73,104.29574205]
[1748759008746,14.69574205,154.77,154.73,89.6]
[1748759009444,6.46161798,154.76,154.73,89.6]
[1748759009845,45.90161798,154.76,154.73,89.6]
[1748759010964,45.90161798,154.76,154.72,131.16763058]
[1748759013244,45.90161798,154.76,154.73,14.69574205]
[1748759013245,39.44,154.76,154.73,14.69574205]
[1748759013446,45.90163516,154.76,154.73,14.69574205]
[1748759015152,39.44,154.76,154.73,14.69574205]
[1748759016372,39.44,154.76,154.74,14.69574205]
[1748759018875,26.39031948,154.8,154.75,14.69574205]
[1748759018876,10.24,154.8,154.75,14.69574205]
[1748759019058,39.4,154.79,154.76,14.69574205]
[1748759019257,10.24,154.8,154.76,14.69574205]
[1748759020079,16.70006128,154.8,154.76,14.69574205]
[1748759020467,6.4596524,154.81,154.77,14.69574205]
[1748759020655,4.57179714,154.83,154.8,14.69574205]
[1748759020851,4.57179714,154.83,154.81,14.69574205]
[1748759021175,4.57179714,154.83,154.82,14.69574205]
[1748759021555,24.87574205,154.9,154.82,104.29574205]
[1748759021760,24.87574205,154.9,154.86,14.69574205]
[1748759022059,6.45619471,154.89,154.86,14.69574205]
[1748759022366,10.18,154.9,154.88,14.69574205]
[1748759022681,6.45506328,154.92,154.89,14.69574205]
[1748759023857,6.45506328,154.92,154.88,14.69574205]
[1748759023858,21.15080533,154.92,154.88,14.69574205]
[1748759024258,14.69574205,154.91,154.87,14.69574205]
[1748759024459,14.69574205,154.91,154.86,14.69574205]
[1748759025666,14.69574205,154.91,154.85,39.5]
[1748759025864,14.69574205,154.9,154.86,14.69574205]
[1748759027665,14.69574205,154.9,154.84,26.0]
[1748759027866,14.69574205,154.88,154.84,14.69574205]
[1748759028897,21.15193676,154.89,154.85,14.69574205]
[1748759030495,21.15193676,154.89,154.84,14.69574205]
[1748759030496,14.69574205,154.88,154.84,14.69574205]
[1748759032062,21.15261862,154.88,154.84,14.69574205]
[1748759032901,6.45687657,154.88,154.85,14.69574205]
[1748759033697,21.15151997,154.9,154.86,14.69574205]
[1748759034996,21.15151997,154.9,154.85,14.69574205]
[1748759036089,16.13840294,154.91,154.85,14.69574205]
[1748759036291,14.69574205,154.89,154.85,14.69574205]
[1748759038711,21.15151997,154.9,154.86,14.69574205]
[1748759039709,14.69574205,154.89,154.85,14.69574205]
[1748759041810,6.45661157,154.88,154.85,14.69574205]
[1748759042325,6.45661157,154.88,154.82,44.64964886]
[1748759042326,14.69574205,154.87,154.82,26.0]
[1748759042494,14.69574205,154.86,154.82,14.69574205]
[1748759043910,6.45786244,154.85,154.82,14.69574205]
[1748759044431,6.45786244,154.85,154.8,26.0]
[1748759044727,21.15360449,154.85,154.8,40.69574205]
[1748759045722,21.15360449,154.85,154.8,14.69574205]
[1748759046405,6.45786244,154.85,154.8,14.69574205]
[1748759046624,14.69574205,154.85,154.8,14.69574205]
[1748759046825,14.69574205,154.83,154.78,26.0]
[1748759047026,14.69574205,154.82,154.77,14.69574205]
[1748759047332,14.69574205,154.82,154.76,51.11126322]
[1748759047510,14.69574205,154.81,154.76,14.69574205]
[1748759048704,14.69574205,154.81,154.75,42.62196941]
[1748759048705,14.69574205,154.82,154.78,14.69574205]
[1748759049123,21.15443868,154.83,154.79,14.69574205]
[1748759052235,21.15526935,154.82,154.78,14.69574205]
[1748759058254,21.15526935,154.82,154.78,104.29574205]
[1748759062759,6.45953698,154.81,154.78,104.29574205]
[1748759063860,6.45953698,154.81,154.78,89.6]
[1748759064053,6.45953698,154.81,154.78,104.29574205]
[1748759064257,21.1550112,154.82,154.78,104.29574205]
[1748759069260,6.45926915,154.82,154.78,104.29574205]
[1748759069767,21.1550112,154.82,154.78,104.29574205]
[1748759070169,6.45869663,154.83,154.78,104.29574205]
[1748759070468,14.69574205,154.82,154.78,104.29574205]
[1748759071276,21.15518599,154.82,154.78,104.29574205]
[1748759076756,9.39810796,154.81,154.78,89.6]
[1748759077267,15.85792331,154.81,154.78,89.6]
[1748759077579,9.39810796,154.79,154.76,89.6]
[1748759078784,14.69084958,154.79,154.76,89.6]
[1748759079207,21.15157367,154.79,154.76,89.6]
[1748759081911,21.15157367,154.79,154.74,14.69084958]
[1748759081912,14.69084958,154.78,154.75,89.6]
[1748759082905,21.15204124,154.78,154.75,89.6]
[1748759083601,21.15204124,154.78,154.73,122.94049844]
[1748759083774,21.15204124,154.78,154.73,104.29084958]
[1748759085293,21.15204124,154.78,154.73,110.75371867]
[1748759085499,21.15204124,154.78,154.74,14.69084958]
[1748759085887,21.15119269,154.8,154.75,14.69084958]
[1748759087013,39.38,154.81,154.77,14.69084958]
[1748759087193,45.83953229,154.81,154.77,14.69084958]
[1748759087400,6.45953229,154.81,154.77,14.69084958]
[1748759089704,21.14996338,154.82,154.78,14.69084958]
[1748759089912,6.4591138,154.82,154.78,14.69084958]
[1748759093006,21.14954621,154.83,154.78,14.69084958]
[1748759093205,21.14954621,154.83,154.79,14.69084958]
[1748759093206,6.45869663,154.83,154.79,14.69084958]
[1748759093611,31.30918304,154.84,154.8,14.69084958]
[1748759094312,31.30918304,154.84,154.79,14.69084958]
[1748759094611,14.69084958,154.83,154.79,14.69084958]
[1748759095194,21.14996338,154.82,154.78,89.6]
[1748759095520,21.14996338,154.82,154.75,27.5712]
[1748759095521,14.69084958,154.81,154.77,14.69084958]
[1748759096003,14.69084958,154.81,154.75,123.63291567]
[1748759096201,14.69084958,154.81,154.77,14.69084958]
[1748759096794,14.69084958,154.81,154.76,14.69084958]
[1748759097212,6.45994832,154.8,154.76,14.69084958]
[1748759099700,6.45994832,154.8,154.76,104.29084958]
[1748759101121,6.45994832,154.8,154.77,14.69084958]
[1748759101627,6.45953103,154.81,154.77,14.69084958]
[1748759102409,6.45953103,154.81,154.78,14.69084958]
[1748759104833,60.57012888,154.82,154.78,14.69084958]
[1748759105002,60.57012888,154.82,154.77,14.69084958]
[1748759105714,6.45702847,154.87,154.81,14.69084958]
[1748759105908,21.14787805,154.87,154.82,14.69084958]
[1748759106102,31.30759963,154.88,154.83,14.69084958]
[1748759106327,16.61675005,154.88,154.84,14.69084958]
[1748759107008,16.61675005,154.88,154.82,18.64964886]
[1748759107009,10.16,154.88,154.85,14.69084958]
[1748759107707,6.4558217,154.9,154.86,14.69084958]
[1748759108115,21.14623636,154.91,154.87,14.69084958]
[1748759108707,16.61508309,154.92,154.87,14.69084958]
[1748759108915,10.16,154.92,154.88,14.69084958]
[1748759109437,31.30584873,154.92,154.88,14.69084958]
[1748759113025,16.61499915,154.92,154.88,14.69084958]
[1748759113411,31.30584873,154.92,154.88,14.69084958]
[1748759114417,31.30584873,154.92,154.88,104.29084958]
[1748759119550,31.30584873,154.92,154.88,89.6]
[1748759120454,16.61499915,154.92,154.88,104.29084958]
[1748759121759,31.30584873,154.92,154.88,104.29084958]
[1748759122341,21.14546561,154.93,154.89,14.69084958]
[1748759122649,26.0,154.95,154.9,14.69084958]
[1748759122650,54.05084958,154.95,154.9,14.69084958]
[1748759122850,14.69084958,154.95,154.91,14.69084958]
[1748759124072,21.1446569,154.95,154.91,14.69084958]
[1748759124559,6.45380732,154.95,154.91,14.69084958]
[1748759124748,6.45380732,154.95,154.92,14.69084958]
[1748759125133,16.61340976,154.96,154.92,14.69084958]
[1748759125357,10.16,154.96,154.93,14.69084958]
[1748759125675,14.69084958,154.97,154.93,104.29084958]
[1748759125873,6.45256081,154.98,154.94,14.69084958]
[1748759125874,21.14341039,154.98,154.94,14.69084958]
[1748759126239,14.69084958,154.97,154.93,104.29084958]
[1748759127336,39.36,154.99,154.93,104.29084958]
[1748759127337,21.14287874,154.99,154.95,14.69084958]
[1748759127539,6.45202916,154.99,154.96,14.69084958]
[1748759128335,6.45202916,154.99,154.95,14.69084958]
[1748759129353,16.61172645,155.0,154.96,14.69084958]
[1748759129568,31.30257603,155.0,154.95,14.69084958]
[1748759130363,14.69084958,154.99,154.94,14.69084958]
[1748759131278,6.45244547,154.98,154.94,14.69084958]
[1748759131576,6.45244547,154.98,154.93,104.29084958]
[1748759131751,21.14329505,154.98,154.93,104.29084958]
[1748759132397,14.69084958,154.96,154.9,26.0]
[1748759132555,14.69084958,154.95,154.91,14.69084958]
[1748759132751,14.69084958,154.96,154.91,14.69084958]
[1748759133178,14.69084958,154.96,154.92,14.69084958]
[1748759133482,21.14429763,154.96,154.92,14.69084958]
[1748759133961,6.45344805,154.96,154.92,14.69084958]
[1748759134474,54.01084958,154.98,154.94,14.69084958]
[1748759134662,54.01084958,154.98,154.94,104.29084958]
[1748759135067,14.69084958,154.98,154.94,104.29084958]
[1748759135479,21.14287874,154.99,154.94,104.29084958]
[1748759135675,6.45202916,154.99,154.94,104.29084958]
[1748759135881,21.14287874,154.99,154.95,14.69084958]
[1748759136078,6.45202916,154.99,154.95,14.69084958]
[1748759136386,21.14287874,154.99,154.95,14.69084958]
[1748759137160,21.14287874,154.99,154.95,104.29084958]
[1748759139881,6.45202916,154.99,154.96,14.69084958]
[1748759140070,16.61173017,155.0,154.96,14.69084958]
[1748759140585,14.69084958,155.02,154.98,14.69084958]
[1748759140769,107.69084958,155.03,154.99,14.69084958]
[1748759141083,21.14173511,155.02,154.98,104.29084958]
[1748759143977,21.14173511,155.02,154.98,14.69084958]
[1748759146295,6.45088553,155.02,154.98,14.69084958]
[1748759146602,21.14173511,155.02,154.98,14.69084958]
[1748759147392,6.45088553,155.02,154.98,14.69084958]
[1748759147784,21.14173511,155.02,154.98,14.69084958]
[1748759148886,21.14173511,155.02,154.97,14.69084958]
[1748759149975,21.14173511,155.02,154.97,104.29084958]
[1748759151095,6.45088553,155.02,154.98,14.69084958]
[1748759153701,21.14173511,155.02,154.98,14.69084958]
[1748759155892,21.14173511,155.02,154.98,104.29084958]
[1748759156595,6.45036444,155.03,154.98,104.29084958]
[1748759156798,14.69084958,155.02,154.98,104.29084958]
[1748759157895,6.45119669,155.01,154.98,104.29084958]
[1748759159983,6.45078054,155.02,154.98,104.29084958]
[1748759160383,21.14163012,155.02,154.98,104.29084958]
[1748759161005,14.69084958,155.01,154.98,89.6]
[1748759162118,6.4516129,155.0,154.98,89.6]
[1748759165211,21.14246248,155.0,154.98,89.6]
[1748759168005,14.69084958,154.99,154.96,89.67897932]
[1748759168723,9.3784086,154.99,154.96,89.67897932]
[1748759169522,9.3784086,154.98,154.96,89.67897932]
[1748759169709,9.3784086,154.97,154.96,0.07897932]
[1748759169910,15.83127044,154.97,154.96,0.07897932]
[1748759172700,21.11088315,154.97,154.96,0.07897932]
[1748759184835,6.45286184,154.97,154.96,0.07897932]
[1748759185043,21.11062452,154.98,154.96,0.07897932]
[1748759185835,31.19021247,154.99,154.96,0.07897932]
[1748759186042,70.43021247,154.99,154.96,1.63337932]
[1748759188438,16.53219116,154.99,154.96,1.63337932]
[1748759188640,14.65802131,155.01,154.97,14.65802131]
[1748759188836,53.89802131,155.02,154.98,14.65802131]
[1748759189435,14.65802131,155.02,154.98,14.65802131]
[1748759189753,14.65802131,155.01,154.97,14.65802131]
[1748759189924,14.65802131,155.01,154.96,105.89140063]
[1748759192955,6.4516129,155.0,154.96,105.89140063]
[1748759193156,6.4516129,155.0,154.96,91.23337932]
[1748759193341,14.65802131,154.99,154.96,91.23337932]
[1748759193966,14.65802131,154.98,154.96,91.23337932]
[1748759194460,14.65802131,154.99,154.96,91.23337932]
[1748759196366,60.34963421,155.0,154.96,91.23337932]
[1748759196569,39.24,155.0,154.97,14.65802131]
[1748759196866,39.24,155.0,154.96,105.89140063]
[1748759197767,45.69170181,155.0,154.96,105.89140063]
[1748759197960,60.34972312,155.0,154.96,105.89140063]
[1748759198261,45.69170181,155.0,154.96,105.89140063]
[1748759198765,60.34972312,155.0,154.96,105.89140063]